bitfinex/quotes_BTCUSD_20240908
["timestamp","ask_amount","ask_price","bid_price","bid_amount"]
[1725758259621,1.29682809,54403.0,54402.0,0.2394]
[1725758260683,1.29782809,54403.0,54402.0,0.2454]
[1725758260923,1.29682809,54403.0,54402.0,0.2394]
[1725758261333,1.29782809,54403.0,54402.0,0.2444]
[1725758261542,1.29682809,54403.0,54402.0,0.2394]
[1725758261988,1.29782809,54403.0,54402.0,0.2454]
[1725758263086,1.29682809,54403.0,54402.0,0.2394]
[1725758263593,1.29782809,54403.0,54402.0,0.2454]
[1725758264259,1.29882809,54403.0,54402.0,0.2514]
[1725758264498,1.29882809,54403.0,54402.0,0.2454]
[1725758264747,1.29982809,54403.0,54402.0,0.2514]
[1725758265243,0.93120209,54403.0,54402.0,0.2454]
[1725758265727,0.93120209,54403.0,54402.0,0.2504]
[1725758266190,0.93120209,54403.0,54402.0,0.2454]
[1725758266191,0.19595009,54403.0,54402.0,0.2454]
[1725758266424,0.19595009,54403.0,54402.0,0.2514]
[1725758266425,0.19695009,54403.0,54402.0,0.2514]
[1725758267127,0.01313709,54403.0,54402.0,0.2514]
[1725758267389,0.01313709,54403.0,54402.0,0.458216]
[1725758267620,0.003,54403.0,54402.0,0.458216]
[1725758268054,0.003,54403.0,54402.0,0.825849]
[1725758268507,0.003,54403.0,54402.0,1.193482]
[1725758269352,0.003,54403.0,54402.0,1.195112]
[1725758272054,0.002,54403.0,54402.0,1.189112]
[1725758272811,0.003,54403.0,54402.0,1.203112]
[1725758273222,0.001,54403.0,54402.0,1.197112]
[1725758273427,0.002,54403.0,54402.0,1.210112]
[1725758273626,0.002,54403.0,54402.0,1.197112]
[1725758274083,0.003,54403.0,54402.0,1.577745]
[1725758274299,0.000815,54407.0,54406.0,0.551409]
[1725758274500,0.000815,54407.0,54406.0,0.816109]
[1725758274708,0.000815,54407.0,54406.0,1.183715]
[1725758274922,0.000815,54407.0,54406.0,1.683715]
[1725758275344,0.000815,54407.0,54406.0,1.697715]
[1725758275776,0.000815,54407.0,54406.0,1.683715]
[1725758276141,0.000815,54407.0,54406.0,1.697715]
[1725758277047,0.000815,54407.0,54406.0,2.065321]
[1725758277171,0.001815,54407.0,54406.0,2.078321]
[1725758277827,0.001815,54407.0,54406.0,2.110321]
[1725758278274,0.001815,54407.0,54406.0,2.1920383]
[1725758278733,0.001815,54407.0,54406.0,2.110321]
[1725758280500,0.001815,54407.0,54406.0,2.57632999]
[1725758280714,0.001815,54407.0,54406.0,2.65804729]
[1725758280924,0.001815,54407.0,54406.0,2.67518221]
[1725758281132,0.001815,54407.0,54406.0,2.57632999]
[1725758281338,0.001815,54407.0,54406.0,2.63098161]
[1725758281547,0.001815,54407.0,54406.0,2.57632999]
[1725758282235,0.001815,54407.0,54406.0,2.63098286]
[1725758282705,0.001815,54407.0,54406.0,2.57632999]
[1725758282907,0.000815,54409.0,54408.0,1.298575]
[1725758283140,0.000815,54409.0,54408.0,1.74636923]
[1725758283564,0.000815,54409.0,54408.0,1.79902793]
[1725758283791,0.000815,54409.0,54408.0,1.80102793]
[1725758284501,0.002815,54409.0,54408.0,1.77336923]
[1725758285324,0.002815,54409.0,54408.0,1.67833747]
[1725758285978,0.002815,54409.0,54408.0,2.04133747]
[1725758287391,0.002815,54409.0,54408.0,2.04333747]
[1725758288390,0.002815,54409.0,54408.0,2.05070547]
[1725758293232,0.002815,54409.0,54408.0,2.14908531]
[1725758306829,0.002815,54409.0,54408.0,2.14708531]
[1725758307523,0.002815,54409.0,54408.0,2.14908531]
[1725758312627,0.002815,54409.0,54408.0,2.20368587]
[1725758313773,0.0239,54424.0,54408.0,2.20368587]
[1725758313774,0.3117505,54425.0,54417.0,0.367528]
[1725758313994,0.3117505,54425.0,54418.0,0.02667466]
[1725758314219,0.01116441,54424.0,54418.0,0.12667466]
[1725758314435,0.01116441,54424.0,54419.0,0.183759]
[1725758314661,0.183749,54422.0,54420.0,0.1]
[1725758314865,0.183746,54423.0,54418.0,0.306762]
[1725758315103,0.01114828,54421.0,54418.0,0.306762]
[1725758315554,0.367494,54423.0,54418.0,0.1]
[1725758315813,0.01114291,54420.0,54419.0,0.002]
[1725758316031,0.183754,54421.0,54419.0,0.002]
[1725758316244,0.01121405,54420.0,54419.0,0.002]
[1725758316911,0.01121405,54420.0,54418.0,0.102]
[1725758317365,0.01121405,54420.0,54418.0,0.106]
[1725758317585,0.01121405,54420.0,54418.0,0.1]
[1725758317798,0.01221405,54420.0,54419.0,0.013]
[1725758318264,0.01121405,54420.0,54419.0,0.006]
[1725758318475,0.01221405,54420.0,54419.0,0.006]
[1725758318683,0.01121405,54420.0,54419.0,0.006]
[1725758319176,0.01121405,54420.0,54418.0,0.1]
[1725758319395,0.01121405,54420.0,54418.0,0.106]
[1725758319823,0.01121405,54420.0,54418.0,0.1]
[1725758320048,0.01221405,54420.0,54419.0,0.007]
[1725758320262,0.01221405,54420.0,54419.0,0.006]
[1725758320706,0.01321405,54420.0,54418.0,0.107]
[1725758320928,0.19497005,54420.0,54418.0,0.1]
[1725758321138,0.19497005,54420.0,54419.0,0.007]
[1725758321339,0.19597005,54420.0,54419.0,0.007]
[1725758322768,0.19597005,54420.0,54419.0,0.013]
[1725758324253,0.56348105,54420.0,54419.0,0.013]
[1725758324451,1.30230305,54420.0,54419.0,0.013]
[1725758324664,1.35751394,54420.0,54419.0,0.013]
[1725758324868,1.38518076,54420.0,54419.0,0.013]
[1725758325083,1.30230305,54420.0,54419.0,0.013]
[1725758325712,1.38612441,54420.0,54419.0,0.013]
[1725758326411,1.3584961,54420.0,54419.0,0.013]
[1725758326621,0.183793,54409.0,54408.0,0.65430836]
[1725758327091,0.19602786,54409.0,54408.0,0.1]
[1725758327322,0.183796,54408.0,54407.0,0.00163]
[1725758327553,0.551389,54408.0,54407.0,0.00163]
[1725758330081,0.918982,54408.0,54407.0,0.00163]
[1725758330335,0.918982,54408.0,54407.0,0.01463]
[1725758330771,0.9278358,54408.0,54407.0,0.01463]
[1725758331293,0.9288358,54408.0,54407.0,0.02863]
[1725758331584,0.9278358,54408.0,54407.0,0.01463]
[1725758331777,0.94989708,54408.0,54407.0,0.02663]
[1725758332032,0.94989708,54408.0,54407.0,0.01363]
[1725758332480,0.94989708,54408.0,54407.0,0.02463]
[1725758332665,0.94889708,54408.0,54407.0,0.01263]
[1725758332906,0.94889708,54408.0,54407.0,0.00163]
[1725758333339,0.94889708,54408.0,54407.0,0.00463]
[1725758333987,0.94889708,54408.0,54407.0,0.00963]
[1725758334209,0.94889708,54408.0,54407.0,0.00463]
[1725758334435,0.95223811,54408.0,54407.0,0.00963]
[1725758335359,1.31983111,54408.0,54407.0,0.00963]
[1725758336435,1.31983111,54408.0,54407.0,0.00663]
[1725758336871,1.31983111,54408.0,54407.0,0.00163]
[1725758337326,1.31983111,54408.0,54407.0,0.00263]
[1725758337929,1.31983111,54408.0,54407.0,0.00163]
[1725758338422,1.31983111,54408.0,54407.0,0.00263]
[1725758338642,1.31983111,54408.0,54407.0,0.00163]
[1725758339068,1.31983111,54408.0,54407.0,0.00263]
[1725758339527,1.31983111,54408.0,54407.0,0.00363]
[1725758339977,1.31983111,54408.0,54407.0,0.00263]
[1725758340202,1.31983111,54408.0,54407.0,0.00363]
[1725758340662,1.31983111,54408.0,54407.0,0.00563]
[1725758340895,1.31983111,54408.0,54407.0,0.00363]
[1725758341369,1.31983111,54408.0,54407.0,0.00663]
[1725758341586,1.31983111,54408.0,54407.0,0.00463]
[1725758342014,1.31983111,54408.0,54407.0,0.00663]
[1725758344658,1.31983111,54408.0,54407.0,0.512229]
[1725758344659,0.01219483,54408.0,54407.0,0.512229]
[1725758344884,0.01219483,54408.0,54407.0,0.451429]
[1725758345111,0.01219483,54408.0,54407.0,0.819028]
[1725758345320,0.01219483,54408.0,54407.0,1.186627]
[1725758345578,0.02124226,54413.0,54411.0,0.0604]
[1725758345797,0.183777,54414.0,54412.0,0.0776]
[1725758346020,0.183777,54414.0,54413.0,0.0604]
[1725758346693,0.20585781,54414.0,54413.0,0.0604]
[1725758347804,0.57340981,54414.0,54413.0,0.0604]
[1725758348032,0.57440981,54414.0,54413.0,0.0714]
[1725758348887,0.57440981,54414.0,54413.0,0.0814]
[1725758349093,0.58314797,54414.0,54413.0,0.0814]
[1725758349520,0.5864679,54414.0,54413.0,0.0814]
[1725758350378,0.58434913,54414.0,54413.0,0.0814]
[1725758350659,0.21679713,54414.0,54413.0,0.0814]
[1725758353066,0.00993393,54414.0,54413.0,0.0814]
[1725758354320,0.00993393,54414.0,54413.0,0.0704]
[1725758354321,0.19371093,54414.0,54413.0,0.0704]
[1725758354547,0.19471093,54414.0,54413.0,0.0714]
[1725758354779,0.19471093,54414.0,54413.0,0.0814]
[1725758355255,0.01093393,54414.0,54413.0,0.442179]
[1725758355485,0.01093393,54414.0,54413.0,0.809738]
[1725758355731,0.001,54414.0,54413.0,0.809738]
[1725758355936,0.001,54414.0,54413.0,1.190297]
[1725758356166,0.001,54414.0,54413.0,1.200297]
[1725758357455,0.001,54414.0,54413.0,1.202297]
[1725758359190,0.001,54414.0,54413.0,1.569856]
[1725758361039,0.001,54414.0,54413.0,1.567856]
[1725758361455,0.001,54414.0,54413.0,1.930856]
[1725758363118,0.001,54414.0,54413.0,1.932856]
[1725758363363,0.183743,54424.0,54419.0,0.183756]
[1725758363556,0.183743,54424.0,54420.0,0.1]
[1725758363751,0.00836613,54423.0,54421.0,0.0645]
[1725758364329,0.00173439,54423.0,54421.0,0.0645]
[1725758364509,0.38855106,54426.0,54421.0,0.0645]
[1725758364718,0.18374,54425.0,54421.0,0.0645]
[1725758365137,0.00940318,54424.0,54421.0,0.0645]
[1725758365597,0.00840318,54424.0,54421.0,0.0645]
[1725758366770,0.19214518,54424.0,54421.0,0.0655]
[1725758366977,0.19214518,54424.0,54421.0,0.0645]
[1725758367385,0.00940318,54424.0,54421.0,0.0725]
[1725758367759,0.00940318,54424.0,54421.0,0.0795]
[1725758368030,0.00780163,54424.0,54421.0,0.0795]
[1725758368672,0.00899601,54424.0,54421.0,0.0795]
[1725758368871,0.001,54424.0,54421.0,0.0795]
[1725758369752,0.18374,54425.0,54421.0,0.0715]
[1725758370183,0.001,54424.0,54421.0,0.0725]
[1725758370391,0.001,54424.0,54421.0,0.248252]
[1725758370599,0.001,54424.0,54421.0,0.255252]
[1725758370878,0.002,54424.0,54422.0,0.0778]
[1725758371106,0.00313172,54437.0,54426.0,0.0645]
[1725758371351,0.183728,54428.0,54426.0,0.0645]
[1725758371584,0.367457,54429.0,54425.0,0.1]
[1725758371585,0.183735,54426.0,54425.0,0.1]
[1725758371822,0.367457,54429.0,54425.0,0.1]
[1725758371823,0.183731,54428.0,54425.0,0.1]
[1725758372052,0.183732,54427.0,54425.0,0.1]
[1725758372309,0.551185,54429.0,54425.0,0.1]
[1725758372544,0.183729,54428.0,54425.0,0.1]
[1725758373566,0.183729,54428.0,54425.0,0.102]
[1725758374248,0.183729,54428.0,54425.0,0.105]
[1725758375086,0.183733,54427.0,54425.0,0.105]
[1725758376509,0.183733,54427.0,54425.0,0.1]
[1725758376938,0.183733,54427.0,54425.0,0.107]
[1725758377528,0.183735,54426.0,54425.0,0.107]
[1725758377732,0.551206,54426.0,54425.0,0.107]
[1725758377879,0.551206,54426.0,54425.0,0.104]
[1725758378295,0.551206,54426.0,54425.0,0.108]
[1725758379608,0.551206,54426.0,54425.0,0.004]
[1725758379857,0.183739,54425.0,54424.0,0.00163]
[1725758381098,0.551217,54425.0,54424.0,0.00863]
[1725758381306,0.183739,54425.0,54424.0,0.15623]
[1725758381460,0.183739,54425.0,54424.0,0.25623]
[1725758382795,0.184739,54425.0,54424.0,0.26423]
[1725758383236,0.179739,54425.0,54424.0,0.26423]
[1725758389652,0.180554,54425.0,54424.0,0.26423]
[1725758391393,0.001815,54425.0,54424.0,0.26423]
[1725758391669,0.367459,54428.0,54424.0,0.26423]
[1725758392047,0.367476,54426.0,54425.0,0.1]
[1725758392262,0.551211,54426.0,54425.0,0.1]
[1725758393325,0.183735,54426.0,54425.0,0.1]
[1725758393746,0.183735,54426.0,54425.0,0.105]
[1725758393973,0.184735,54426.0,54425.0,0.112]
[1725758400397,0.552206,54426.0,54425.0,0.112]
[1725758401955,0.184735,54426.0,54425.0,0.1736]
[1725758402162,0.001,54426.0,54425.0,0.1736]
[1725758402377,0.184735,54426.0,54425.0,0.1736]
[1725758403273,0.552206,54426.0,54425.0,0.1736]
[1725758403475,0.553021,54426.0,54425.0,0.1736]
[1725758406252,1.37742547,54426.0,54425.0,0.112]
[1725758406469,1.37742547,54426.0,54425.0,0.012]
[1725758406713,1.43263458,54426.0,54425.0,0.112]
[1725758407585,1.37742547,54426.0,54425.0,0.112]
[1725758407792,1.37742547,54426.0,54425.0,0.012]
[1725758410014,1.287963,54426.0,54425.0,0.012]
[1725758410235,0.920492,54426.0,54425.0,0.012]
[1725758410441,0.920492,54426.0,54425.0,0.0736]
[1725758415551,0.001815,54426.0,54425.0,0.1561]
[1725758415788,0.001815,54426.0,54425.0,0.2561]
[1725758416017,0.001815,54426.0,54425.0,0.25773]
[1725758416751,0.000815,54426.0,54425.0,0.24573]
[1725758417016,0.000815,54426.0,54425.0,0.25473]
[1725758417228,0.001815,54426.0,54425.0,0.26473]
[1725758417432,0.000815,54426.0,54425.0,0.24573]
[1725758417637,0.000815,54426.0,54425.0,0.25573]
[1725758417856,0.001815,54426.0,54425.0,0.26773]
[1725758419396,0.18555,54426.0,54425.0,0.26773]
[1725758419610,0.18455,54426.0,54425.0,0.24573]
[1725758420038,0.18455,54426.0,54425.0,0.26773]
[1725758420931,0.552021,54426.0,54425.0,0.26773]
[1725758423887,0.552021,54426.0,54425.0,0.20613]
[1725758427646,0.29994056,54426.0,54425.0,0.20613]
[1725758428082,0.85114656,54426.0,54425.0,0.20613]
[1725758428291,0.85196156,54426.0,54425.0,0.20613]
[1725758430871,0.552021,54426.0,54425.0,0.20613]
[1725758431297,0.919492,54426.0,54425.0,0.27203]
[1725758431977,0.93827184,54426.0,54425.0,0.27203]
[1725758444012,0.93827184,54426.0,54425.0,0.20613]
[1725758444013,1.30574284,54426.0,54425.0,0.20613]
[1725758444238,1.30574284,54426.0,54425.0,0.12363]
[1725758444457,1.30574284,54426.0,54425.0,0.02363]
[1725758444694,1.30574284,54426.0,54425.0,0.12363]
[1725758445841,1.30574284,54426.0,54425.0,0.02363]
[1725758456665,1.29542682,54426.0,54425.0,0.02363]
[1725758461314,0.92795582,54426.0,54425.0,0.16613]
[1725758461542,0.55398934,54426.0,54425.0,0.26613]
[1725758461766,0.55169197,54426.0,54425.0,0.26613]
[1725758462213,0.91916297,54426.0,54425.0,0.26613]
[1725758462920,0.91534007,54426.0,54425.0,0.26613]
[1725758464040,0.54786907,54426.0,54425.0,0.26613]
[1725758464309,0.01959484,54426.0,54425.0,0.84402145]
[1725758464508,0.01959484,54426.0,54425.0,0.840347]
[1725758464738,0.000815,54426.0,54425.0,0.472869]
[1725758465176,0.000815,54426.0,54425.0,0.840347]
[1725758465384,0.000815,54426.0,54425.0,0.472869]
[1725758466088,0.000815,54426.0,54425.0,0.28913]
[1725758466749,0.000815,54426.0,54425.0,0.27713]
[1725758466979,0.000815,54426.0,54425.0,0.460869]
[1725758467493,0.000815,54426.0,54425.0,0.450869]
[1725758467701,0.000815,54426.0,54425.0,0.464869]
[1725758468145,0.367426,54433.0,54427.0,0.063]
[1725758468146,0.2920853,54433.0,54427.0,0.063]
[1725758468373,0.2920853,54433.0,54425.0,0.322369]
[1725758468374,0.183718,54432.0,54429.0,0.063]
[1725758468612,0.183718,54432.0,54428.0,0.023]
[1725758468613,0.20298534,54432.0,54430.0,0.1425]
[1725758468827,0.20298534,54432.0,54428.0,0.023]
[1725758468828,0.16532796,54431.0,54429.0,0.063]
[1725758469019,0.16532796,54431.0,54429.0,0.0795]
[1725758469226,0.16532796,54431.0,54430.0,0.1425]
[1725758469448,0.16532796,54431.0,54430.0,0.2425]
[1725758469669,0.17152705,54431.0,54430.0,0.2425]
[1725758470580,0.53896405,54431.0,54430.0,0.2425]
[1725758471024,0.17152705,54431.0,54430.0,0.2425]
[1725758471715,0.17152705,54431.0,54430.0,0.2555]
[1725758472020,0.17152705,54431.0,54430.0,0.2425]
[1725758472251,0.17152705,54431.0,54430.0,0.2695]
[1725758472415,0.17152705,54431.0,54430.0,0.2555]
[1725758472630,0.53896405,54431.0,54430.0,0.2695]
[1725758472996,0.53896405,54431.0,54430.0,0.2555]
[1725758473208,0.53896405,54431.0,54430.0,0.2695]
[1725758473642,0.53896405,54431.0,54430.0,0.2565]
[1725758473910,0.53896405,54431.0,54430.0,0.2695]
[1725758474360,0.53896405,54431.0,54430.0,0.2565]
[1725758474813,0.53896405,54431.0,54430.0,0.2695]
[1725758475271,0.53896405,54431.0,54430.0,0.2425]
[1725758475508,0.53896405,54431.0,54430.0,0.2695]
[1725758475731,0.53896405,54431.0,54430.0,0.2555]
[1725758476169,0.53896405,54431.0,54430.0,0.2695]
[1725758477269,0.90721605,54431.0,54430.0,0.2695]
[1725758477493,0.53977905,54431.0,54430.0,0.2695]
[1725758478369,0.90721605,54431.0,54430.0,0.2695]
[1725758478801,0.53977905,54431.0,54430.0,0.2695]
[1725758484415,0.55284934,54431.0,54430.0,0.2695]
[1725758486989,0.18541234,54431.0,54430.0,0.2695]
[1725758487271,0.02008438,54431.0,54430.0,0.91567106]
[1725758487514,0.000815,54437.0,54436.0,0.683701]
[1725758487718,0.000815,54437.0,54436.0,0.948701]
[1725758487931,0.000815,54437.0,54436.0,1.40556647]
[1725758488144,0.000815,54437.0,54436.0,1.77296947]
[1725758488612,0.000815,54437.0,54436.0,1.78696947]
[1725758489053,0.000815,54437.0,54436.0,1.43356647]
[1725758489338,0.000815,54437.0,54436.0,0.779]
[1725758489531,0.000815,54437.0,54436.0,0.765]
[1725758489758,0.01756548,54437.0,54436.0,0.779]
[1725758489968,0.000815,54437.0,54436.0,0.256]
[1725758490168,0.01762316,54437.0,54436.0,0.242]
[1725758490398,0.01762316,54437.0,54436.0,0.256]
[1725758490619,0.56871816,54437.0,54436.0,0.242]
[1725758491287,0.56871816,54437.0,54436.0,0.256]
[1725758491722,0.56871816,54437.0,54436.0,0.242]
[1725758492151,0.93611516,54437.0,54436.0,0.269]
[1725758492362,0.93611516,54437.0,54436.0,0.256]
[1725758492572,0.93611516,54437.0,54436.0,0.619]
[1725758492801,0.93611516,54437.0,54436.0,0.633]
[1725758496658,0.93611516,54437.0,54436.0,0.619]
[1725758496908,0.93611516,54437.0,54436.0,0.617]
[1725758497130,0.93611516,54437.0,54436.0,0.616]
[1725758497563,0.93611516,54437.0,54436.0,0.617]
[1725758497990,0.93611516,54437.0,54436.0,0.628]
[1725758498666,0.56871816,54437.0,54436.0,0.628]
[1725758498875,0.56871816,54437.0,54436.0,0.616]
[1725758499082,0.20132116,54437.0,54436.0,0.616]
[1725758499299,0.20132116,54437.0,54436.0,0.628]
[1725758502671,0.20132116,54437.0,54436.0,0.616]
[1725758502885,0.20132116,54437.0,54436.0,0.625]
[1725758503099,0.20132116,54437.0,54436.0,0.605]
[1725758503520,0.20132116,54437.0,54436.0,0.622]
[1725758503960,0.20132116,54437.0,54436.0,0.615]
[1725758504475,0.20132116,54437.0,54436.0,0.624]
[1725758504715,0.20132116,54437.0,54436.0,0.615]
[1725758505549,0.20132116,54437.0,54436.0,0.626]
[1725758505771,0.20132116,54437.0,54436.0,0.615]
[1725758506184,0.20132116,54437.0,54436.0,0.628]
[1725758506391,0.20132116,54437.0,54436.0,0.605]
[1725758506606,0.20132116,54437.0,54436.0,0.631]
[1725758507244,0.20132116,54437.0,54436.0,0.619]
[1725758507444,0.20132116,54437.0,54436.0,0.632]
[1725758511185,0.20132116,54437.0,54436.0,0.619]
[1725758512128,0.01762316,54437.0,54436.0,0.605]
[1725758512338,0.01762316,54437.0,54436.0,0.825701]
[1725758512766,0.01762316,54437.0,54436.0,0.811701]
[1725758512985,0.01762316,54437.0,54436.0,0.838701]
[1725758513220,0.01762316,54437.0,54436.0,0.824701]
[1725758513664,0.01762316,54437.0,54436.0,0.838701]
[1725758513888,0.01762316,54437.0,54436.0,1.206104]
[1725758514106,0.01762316,54437.0,54436.0,0.838701]
[1725758514331,0.000815,54437.0,54436.0,0.838701]
[1725758515064,0.01764939,54437.0,54436.0,0.838701]
[1725758515252,0.000815,54437.0,54436.0,0.838701]
[1725758515464,0.01764939,54437.0,54436.0,0.838701]
[1725758515706,0.000815,54437.0,54436.0,0.838701]
[1725758515927,0.000815,54437.0,54436.0,0.655]
[1725758515928,0.01763389,54437.0,54436.0,0.655]
[1725758516149,0.000815,54437.0,54436.0,0.292]
[1725758516362,0.000815,54437.0,54436.0,0.475701]
[1725758516363,0.01763389,54437.0,54436.0,0.475701]
[1725758517435,0.000815,54437.0,54436.0,0.475701]
[1725758518087,0.01763389,54437.0,54436.0,0.475701]
[1725758518307,0.00651051,54437.0,54436.0,0.475701]
[1725758520241,0.00651051,54437.0,54436.0,0.292]
[1725758521532,0.00651051,54437.0,54436.0,0.475701]
[1725758523071,0.00651051,54437.0,54436.0,0.843104]
[1725758523520,0.000815,54437.0,54436.0,0.843104]
[1725758524150,0.000815,54437.0,54436.0,0.292]
[1725758524582,0.000815,54437.0,54436.0,0.475701]
[1725758524815,0.01764221,54437.0,54436.0,0.475701]
[1725758525711,0.01764221,54437.0,54436.0,0.292]
[1725758525922,0.01764221,54437.0,54436.0,0.269]
[1725758526184,0.20134021,54437.0,54436.0,0.269]
[1725758527097,0.20703912,54437.0,54436.0,0.269]
[1725758528389,0.57443612,54437.0,54436.0,0.269]
[1725758529715,0.02334112,54437.0,54436.0,1.69438517]
[1725758530032,0.00082,54444.0,54436.0,1.69438517]
[1725758530033,0.05514013,54469.0,54464.0,0.86]
[1725758530273,0.13866368,54470.0,54469.0,1.317133]
[1725758530274,0.00082,54470.0,54469.0,1.317133]
[1725758530506,0.00082,54470.0,54469.0,1.39274447]
[1725758530718,0.00082,54470.0,54469.0,1.066771]
[1725758530930,0.00082,54470.0,54469.0,0.90555247]
[1725758531166,0.0664,54489.0,54469.0,0.90555247]
[1725758531167,0.0664,54489.0,54472.0,0.5]
[1725758531383,0.08270323,54499.0,54477.0,0.08946247]
[1725758531384,0.00225292,54491.0,54477.0,0.08946247]
[1725758531625,0.183548,54482.0,54478.0,0.02667066]
[1725758531872,0.367078,54485.0,54478.0,0.123]
[1725758532100,0.183556,54479.0,54478.0,0.023]
[1725758532340,0.183562,54478.0,54475.0,0.1]
[1725758532568,0.16536864,54477.0,54475.0,0.1]
[1725758532798,0.183567,54476.0,54475.0,0.1]
[1725758533030,0.550701,54476.0,54475.0,0.1]
[1725758533246,0.550701,54476.0,54470.0,0.1]
[1725758533247,0.183583,54471.0,54470.0,0.1]
[1725758533454,0.183583,54471.0,54470.0,0.123]
[1725758533722,0.18672734,54471.0,54470.0,0.1]
[1725758533912,0.55389434,54471.0,54470.0,0.1]
[1725758534954,0.92106134,54471.0,54470.0,0.1]
[1725758535822,1.45533755,54471.0,54470.0,0.1]
[1725758536033,1.45533755,54471.0,54458.0,0.0813]
[1725758536034,0.367213,54465.0,54458.0,0.1813]
[1725758536275,0.367194,54468.0,54458.0,0.1813]
[1725758536486,0.550872,54459.0,54458.0,0.1813]
[1725758536916,0.18670541,54459.0,54458.0,0.1813]
[1725758537605,0.19703414,54459.0,54458.0,0.1813]
[1725758538062,0.19703414,54459.0,54458.0,0.1943]
[1725758538283,0.19703414,54459.0,54458.0,0.2173]
[1725758538946,0.19703414,54459.0,54458.0,0.2233]
[1725758539403,0.19703414,54459.0,54458.0,0.2173]
[1725758539660,0.93153014,54459.0,54458.0,0.112]
[1725758539897,0.93153014,54459.0,54458.0,0.116]
[1725758540122,0.93153014,54459.0,54458.0,0.112]
[1725758540344,0.93153014,54459.0,54458.0,0.125]
[1725758540577,0.93153014,54459.0,54458.0,0.112]
[1725758541035,0.93153014,54459.0,54458.0,0.125]
[1725758541502,0.93153014,54459.0,54458.0,0.113]
[1725758541718,0.93153014,54459.0,54458.0,0.125]
[1725758542410,0.93153014,54459.0,54458.0,0.025]
[1725758542885,1.46588735,54459.0,54458.0,0.025]
[1725758545676,1.93770866,54459.0,54458.0,0.025]
[1725758546144,1.93770866,54459.0,54458.0,0.013]
[1725758546373,0.551004,54446.0,54445.0,0.0758]
[1725758547087,0.56554849,54446.0,54445.0,0.0758]
[1725758547717,0.93288449,54446.0,54445.0,0.0758]
[1725758547970,0.93288449,54446.0,54445.0,0.0878]
[1725758548189,0.93288449,54446.0,54445.0,0.012]
[1725758548190,1.30022049,54446.0,54445.0,0.012]
[1725758548859,1.30022049,54446.0,54445.0,0.018]
[1725758549302,0.734794,54437.0,54436.0,0.181]
[1725758549540,1.08560121,54437.0,54436.0,0.181]
[1725758550178,1.08560121,54437.0,54436.0,0.281]
[1725758550639,1.08560121,54437.0,54436.0,0.295]
[1725758550640,1.08853356,54437.0,54436.0,0.295]
[1725758551544,0.92142435,54437.0,54436.0,0.295]
[1725758552439,0.92142435,54437.0,54436.0,0.309]
[1725758557032,0.92142435,54437.0,54436.0,0.128]
[1725758557263,0.92142435,54437.0,54436.0,0.028]
[1725758559624,0.93268723,54437.0,54436.0,0.028]
[1725758559867,0.93268723,54437.0,54436.0,0.029628]
[1725758562023,1.36358423,54437.0,54436.0,0.029628]
[1725758562663,1.36358423,54437.0,54436.0,0.015628]
[1725758562869,1.36358423,54437.0,54436.0,0.001628]
[1725758563081,1.36358423,54437.0,54436.0,0.006628]
[1725758563568,1.36358423,54437.0,54436.0,0.003628]
[1725758563823,1.36358423,54437.0,54436.0,0.007628]
[1725758564289,1.53069344,54437.0,54436.0,0.003628]
[1725758564512,1.53169344,54437.0,54436.0,0.001628]
[1725758564728,1.53169344,54437.0,54436.0,0.004628]
[1725758565178,1.53169344,54437.0,54436.0,0.001628]
[1725758565603,1.53169344,54437.0,54436.0,0.002628]
[1725758565832,1.53069344,54437.0,54436.0,0.002628]
[1725758566042,1.53069344,54437.0,54436.0,0.102628]
[1725758566259,1.53069344,54437.0,54436.0,0.204628]
[1725758567151,1.89809044,54437.0,54436.0,0.204628]
[1725758567378,1.89809044,54437.0,54436.0,0.104628]
[1725758568024,1.89809044,54437.0,54436.0,0.103628]
[1725758568497,1.90009044,54437.0,54436.0,0.103628]
[1725758568935,1.89809044,54437.0,54436.0,0.101628]
[1725758569156,1.90309044,54437.0,54436.0,0.101628]
[1725758569858,1.90509044,54437.0,54436.0,0.101628]
[1725758570283,1.90009044,54437.0,54436.0,0.101628]
[1725758571335,1.90209044,54437.0,54436.0,0.101628]
[1725758571753,1.90009044,54437.0,54436.0,0.101628]
[1725758572168,1.90109044,54437.0,54436.0,0.101628]
[1725758572590,1.89809044,54437.0,54436.0,0.101628]
[1725758574558,1.90009044,54437.0,54436.0,0.101628]
[1725758575023,1.89809044,54437.0,54436.0,0.101628]
[1725758575442,1.89909044,54437.0,54436.0,0.101628]
[1725758575868,1.89809044,54437.0,54436.0,0.101628]
[1725758576081,1.90209044,54437.0,54436.0,0.101628]
[1725758576317,1.90009044,54437.0,54436.0,0.101628]
[1725758577696,1.89809044,54437.0,54436.0,0.101628]
[1725758577926,1.90109044,54437.0,54436.0,0.101628]
[1725758579655,1.89909044,54437.0,54436.0,0.101628]
[1725758581526,2.26648744,54437.0,54436.0,0.101628]
[1725758581759,2.29527726,54437.0,54436.0,0.101628]
[1725758581994,2.37747726,54437.0,54436.0,0.101628]
[1725758582461,2.37647726,54437.0,54436.0,0.101628]
[1725758582688,2.37747726,54437.0,54436.0,0.101628]
[1725758583785,2.37947726,54437.0,54436.0,0.101628]
[1725758584112,2.37847726,54437.0,54436.0,0.101628]
[1725758584324,2.37947726,54437.0,54436.0,0.101628]
[1725758584752,2.37847726,54437.0,54436.0,0.101628]
[1725758585212,2.35168744,54437.0,54436.0,0.101628]
[1725758591173,2.26948744,54437.0,54436.0,0.101628]
[1725758591391,1.67148123,54437.0,54436.0,0.101628]
[1725758591839,1.67148123,54437.0,54436.0,0.165328]
[1725758592066,1.66948123,54437.0,54436.0,0.165328]